{"text_format":"1","workbook":"xlsx","n_sheets":6,"sheets":["GrundInfo","1 Kortinlösen och betalterminal","3.Specifika krav","4.Sammanställning","Takpriser","Admin"],"not_rendered":{"charts":0,"images":2,"macros":1,"external_links":0,"defined_names":5,"comments":0,"pivot_tables":0},"unopened":[],"bounds":{"document_bytes":16777216,"sheet_cells":100000,"rows_first":2000,"rows_last":500,"rows_between":2000,"halvings":0,"cell_chars":16384,"cell_head_chars":4096},"cells_cut":0,"cells_raw":0,"read":"whole","date_system":"1900"}

{"sheet":"GrundInfo","index":0,"n_rows":41,"n_cols":9,"rows_kept":41,"cut":false,"hidden":false,"merged":[[30,1,30,2],[30,3,30,5],[33,1,33,2],[33,3,33,5],[34,1,34,2],[34,3,34,5],[31,1,31,2],[31,3,31,5],[8,3,8,5],[9,3,9,5],[9,1,9,2],[2,9,2,11],[5,9,5,11],[6,9,6,11],[7,9,7,11],[8,9,8,11],[2,7,2,8],[6,1,6,2],[7,1,7,2],[8,1,8,2],[24,1,24,2],[24,3,24,5],[9,9,9,11],[4,1,4,2],[4,3,4,5],[4,7,4,8],[4,9,4,11],[5,7,5,8],[6,7,6,8],[7,7,7,8],[8,7,8,8],[9,7,9,8],[5,1,5,2],[5,3,5,5],[6,3,6,5],[7,3,7,5],[15,9,15,11],[16,9,16,11],[17,9,17,11],[15,1,15,2],[16,1,16,2],[17,1,17,2],[15,3,15,5],[16,3,16,5],[17,3,17,5],[16,7,16,8],[17,7,17,8],[15,7,15,8],[25,1,25,2],[25,3,25,5],[27,1,27,2],[27,3,27,5],[28,1,28,2],[28,3,28,5],[40,1,40,2],[40,3,40,5],[36,1,36,2],[36,3,36,5],[37,1,37,2],[37,3,37,5],[39,1,39,2],[39,3,39,5]]}
[]
[]
[null,"1 - Kontaktuppgifter",null,null,null,null,null,null,"Diarienummer eller motsvarande"]
[]
[null,"Avropande myndighet",null,null,null,null,null,"Leverantör"]
[null,"Org-nr",null,null,null,null,null,"Org-nr"]
[null,"Kontaktperson",null,null,null,null,null,"Kontaktperson"]
[null,"Telefon",null,null,null,null,null,"Telefon"]
[null,"E-post",null,null,null,null,null,"E-post"]
[null,"Adress",null,null,null,null,null,"Adress"]
[]
[]
[]
[null,"2 - Förutsättningar"]
[]
[null,"Sista dag för avropssvar",null,null,null,null,null,"Avtalstid från"]
[null,"Sista dag för frågor och svar",null,null,null,null,null,"Kontraktets löptid"]
[null,"Anbudets giltighetstid",null,null,null,null,null,"Möjlig förlängning till"]
[]
[]
[]
[]
[null,"3 - Avropet omfattar även nedanstående bolag:"]
[]
[null,"Bolagsnamn"]
[null,"OrgNr"]
[]
[null,"Bolagsnamn"]
[null,"OrgNr"]
[]
[null,"Bolagsnamn"]
[null,"OrgNr"]
[]
[null,"Bolagsnamn"]
[null,"OrgNr"]
[]
[null,"Bolagsnamn"]
[null,"OrgNr"]
[]
[null,"Bolagsnamn"]
[null,"OrgNr"]

{"sheet":"1 Kortinlösen och betalterminal","index":1,"n_rows":33,"n_cols":7,"rows_kept":33,"cut":false,"hidden":false,"merged":[[135,1,135,4],[73,1,73,4],[96,1,96,4],[97,1,97,4],[98,1,98,4],[190,1,190,4],[148,1,148,4],[153,1,153,4],[164,1,165,1],[166,1,167,1],[175,1,175,4],[183,1,183,4],[99,1,99,4],[130,1,132,1],[28,2,28,3],[6,2,6,3],[16,2,16,3]]}
[]
[]
[]
[]
["Kortinlösen och betalterminaler"]
[]
[null,"1. Kortinlösen","Uppskattad Volym vid anbudsutvärdering - per år",null,"Ange priser exklusive moms pris per enhet","Anbudsgivarens ev. kommentar/beskrivning","Totalsumma som kommer att användas vid anbudsutvärderingen"]
[null,"Pris per transaktion för inlösen av EU Debetkort","Antal transaktioner",null,null,null,{"$f":"IFERROR(D8*E8,\"\")","v":0}]
[null,"Pris i % på transaktionsbelopp för inlösen av EU Debetkort","Belopp",null,null,null,{"$f":"IFERROR(D9*E9,\"\")","v":0}]
[null,"Pris per transaktion för inlösen av EU Kreditkort","Antal transaktioner",null,null,null,0]
[null,"Pris i % på transaktionsbelopp för inlösen av EU Kreditkort","Belopp",null,null,null,0]
[null,"Pris per transaktion för inlösen av EU Företagskort","Antal transaktioner",null,null,null,{"$f":"IFERROR(D12*E12,\"\")","v":0}]
[null,"Pris i % på transaktionsbelopp för inlösen av EU Företagskort","Belopp",null,null,null,0]
[null,"Pris per transaktion för inlösen av Internationella kort","Antal transaktioner",null,null,null,0]
[null,"Pris i % på transaktionsbelopp för inlösen av Internationella kort","Belopp",null,null,null,0]
[]
[null,"2. Betalterminaler","Uppskattad Volym vid anbudsutvärdering - per år",null,"Ange priser exklusive moms pris per enhet","Anbudsgivarens ev. kommentar/beskrivning","Totalsumma som kommer att användas vid anbudsutvärderingen"]
[null,"Stationär kassaintegrerad terminal, Hyres period 12 månader, Pris per år","Antal betalterminaler",null,null,null,{"$f":"IFERROR(D18*E18,\"\")","v":0}]
[null,"Stationär kassaintegrerad terminal, Hyres period 24 månader, Pris per år","Antal betalterminaler",null,null,null,0]
[null,"Stationär kassaintegrerad terminal, Hyres period 36 månader, Pris per år","Antal betalterminaler",null,null,null,0]
[null,"Stationär fristående terminal, hyresperiod 12 månader, Pris per år","Antal betalterminaler",null,null,null,0]
[null,"Stationär fristående terminal, hyresperiod 24 månader, Pris per år","Antal betalterminaler",null,null,null,{"$f":"IFERROR(D22*E22,\"\")","v":0}]
[null,"Stationär fristående terminal, hyresperiod 36 månader, Pris per år","Antal betalterminaler",null,null,null,0]
[null,"Mobil fristående terminal, hyresperiod 12 månader, Pris per år","Antal betalterminaler",null,null,null,0]
[null,"Mobil fristående terminal, hyresperiod 24 månader, Pris per år","Antal betalterminaler",null,null,null,0]
[null,"Mobil fristående terminal, hyresperiod 36 månader, Pris per år","Antal betalterminaler",null,null,null,0]
[]
[]
[null,"3. Service, säkerhet och tillgänglighet","Uppskattad Volym vid anbudsutvärdering - per år",null,"Ange priser exklusive moms pris per enhet","Anbudsgivarens ev. kommentar/beskrivning","Totalsumma som kommer att användas vid anbudsutvärderingen"]
[null,"Pris för eventuell årskostnad för erbjuden service och tillgänglighet","Antal ",null,null,null,{"$f":"IFERROR(D30*E30,\"\")","v":0}]
[]
[]
[null,"Total anbudssumma",null,null,null,null,{"$f":"IF(COUNTIF(G8:G32,\"Båda*\")=0, SUM(G8:G32), \"Fel. Kontrollera tabellen övan\")","v":0}]

{"sheet":"3.Specifika krav","index":2,"n_rows":49,"n_cols":43,"rows_kept":49,"cut":false,"hidden":false,"merged":[[1,7,1,8],[4,18,4,19],[5,18,5,19],[6,18,6,19],[7,18,7,19],[8,18,8,19],[9,18,9,19],[10,18,10,19],[17,18,17,19],[15,7,15,8],[15,9,15,10],[9,12,9,13],[9,14,9,16],[10,12,10,13],[10,14,10,16],[11,14,11,16],[12,14,12,16],[13,14,13,16],[14,14,14,16],[15,12,15,13],[15,14,15,16],[11,18,11,19],[16,14,16,16],[13,9,13,10],[4,2,4,5],[4,7,4,8],[4,12,4,13],[4,14,4,16],[5,2,5,5],[5,7,5,8],[5,12,5,13],[5,14,5,16],[6,2,6,5],[6,7,6,8],[6,12,6,13],[6,14,6,16],[13,2,13,5],[14,2,14,5],[11,7,11,8],[12,7,12,8],[13,7,13,8],[14,7,14,8],[18,18,18,19],[18,9,18,10],[12,9,12,10],[16,2,16,5],[15,2,15,5],[11,12,11,13],[12,12,12,13],[13,12,13,13],[14,12,14,13],[16,7,16,8],[17,7,17,8],[18,7,18,8],[16,9,16,10],[17,9,17,10],[17,2,17,5],[18,2,18,5],[18,12,18,13],[14,9,14,10],[7,2,7,5],[7,7,7,8],[7,12,7,13],[7,14,7,16],[8,7,8,8],[9,7,9,8],[10,7,10,8],[11,2,11,5],[12,2,12,5],[8,2,8,5],[9,2,9,5],[10,2,10,5],[8,12,8,13],[8,14,8,16],[1,20,1,21],[4,9,4,10],[5,9,5,10],[6,9,6,10],[7,9,7,10],[8,9,8,10],[9,9,9,10],[10,9,10,10],[11,9,11,10],[7,20,7,21],[8,20,8,21],[9,20,9,21],[10,20,10,21],[6,20,6,21],[5,20,5,21],[4,20,4,21],[16,20,16,21],[17,20,17,21],[15,20,15,21],[11,20,11,21],[12,20,12,21],[13,20,13,21],[14,20,14,21],[18,20,18,21],[17,12,17,13],[17,14,17,16],[16,12,16,13],[18,14,18,16],[15,18,15,19],[16,18,16,19],[12,18,12,19],[13,18,13,19],[14,18,14,19],[39,4,39,5],[39,7,39,8],[39,9,39,10],[39,13,39,14],[39,16,39,19],[39,20,39,21],[40,4,40,5],[40,7,40,8],[40,9,40,10],[40,13,40,14],[40,16,40,19],[40,20,40,21],[41,4,41,5],[41,7,41,8],[41,9,41,10],[41,13,41,14],[41,16,41,19],[41,20,41,21],[42,4,42,5],[42,7,42,8],[42,9,42,10],[42,13,42,14],[42,16,42,19],[42,20,42,21],[43,4,43,5],[43,7,43,8],[43,9,43,10],[43,13,43,14],[43,16,43,19],[43,20,43,21],[44,4,44,5],[44,7,44,8],[44,9,44,10],[44,13,44,14],[44,16,44,19],[44,20,44,21],[45,4,45,5],[45,7,45,8],[45,9,45,10],[45,13,45,14],[45,16,45,19],[45,20,45,21],[46,4,46,5],[46,7,46,8],[46,9,46,10],[46,13,46,14],[46,16,46,19],[46,20,46,21],[47,4,47,5],[47,7,47,8],[47,9,47,10],[47,13,47,14],[47,16,47,19],[47,20,47,21],[48,4,48,5],[48,7,48,8],[48,9,48,10],[48,13,48,14],[48,16,48,19],[48,20,48,21]]}
[]
[null,"Krav enligt kravkatalog",null,null,null,null,null,"Högsta möjliga pris-avdrag","Möjliga abdrag",null,null,null,null,null,null,null,null,null,null,null,"Förändringar i Utvärderingskostnader",null,null,null,null,{"$f":"IFERROR(SUM(Z5:Z49),\"\")","v":0},{"$f":"IFERROR(SUM(AA5:AA19),\"\")","v":0}]
[]
[]
[null,"Krav-katalogstyp","Krav / Utförande",null,null,null,"Krav- typ*","Beskrivning av utvärdering",null,"Mervärdesavdrag",null,"Kravet Uppfylls*","Verifikat",null,"Kommentar Leverantör",null,null,"Beställar Kontroll*","Erhållet Mervärdesavdrag",null,"Krav-kommentar",null,null,null,null,"Kostnadsökning","Kostnadsavdrag"]
[null,null,null,null,null,null,null,null,null,null,null,null,null,null,null,null,null,null,null,null,null,null,null,{"$f":"IF(AND(G6=\"Bör\",L6=\"Ja\",R6<>\"Uppfylls Ej\"),IF(R6=\"Kravet Uppfylls\",ABS(J6),IF(ABS(S6)>0,ABS(S6),\"\")),\"\")","v":""},null,{"$f":"IF(IF(X6=\"\",\"\",MIN(X6,0))=0,\"\",IF(X6=\"\",\"\",MIN(X6,0)))","v":""},{"$f":"IF(IF(X6=\"\",\"\",MAX(X6,0))=0,\"\",IF(X6=\"\",\"\",MAX(X6,0)))","v":""},null,null,null,null,null,null,null,null,null,null,null,null,null,null,null,""]
[null,null,null,null,null,null,null,null,null,null,null,null,null,null,null,null,null,null,null,null,null,null,null,{"$f":"IF(AND(G7=\"Bör\",L7=\"Ja\",R7<>\"Uppfylls Ej\"),IF(R7=\"Kravet Uppfylls\",ABS(J7),IF(ABS(S7)>0,ABS(S7),\"\")),\"\")","v":""},null,{"$f":"IF(IF(X7=\"\",\"\",MIN(X7,0))=0,\"\",IF(X7=\"\",\"\",MIN(X7,0)))","v":""},{"$f":"IF(IF(X7=\"\",\"\",MAX(X7,0))=0,\"\",IF(X7=\"\",\"\",MAX(X7,0)))","v":""}]
[null,null,null,null,null,null,null,null,null,null,null,null,null,null,null,null,null,null,null,null,null,null,null,{"$f":"IF(AND(G8=\"Bör\",L8=\"Ja\",R8<>\"Uppfylls Ej\"),IF(R8=\"Kravet Uppfylls\",ABS(J8),IF(ABS(S8)>0,ABS(S8),\"\")),\"\")","v":""},null,"",""]
[null,null,null,null,null,null,null,null,null,null,null,null,null,null,null,null,null,null,null,null,null,null,null,"",null,"",""]
[null,null,null,null,null,null,null,null,null,null,null,null,null,null,null,null,null,null,null,null,null,null,null,"",null,"",""]
[null,null,null,null,null,null,null,null,null,null,null,null,null,null,null,null,null,null,null,null,null,null,null,"",null,"",""]
[null,null,null,null,null,null,null,null,null,null,null,null,null,null,null,null,null,null,null,null,null,null,null,"",null,"",""]
[null,null,null,null,null,null,null,null,null,null,null,null,null,null,null,null,null,null,null,null,null,null,null,"",null,"",""]
[null,null,null,null,null,null,null,null,null,null,null,null,null,null,null,null,null,null,null,null,null,null,null,"",null,"",""]
[null,null,null,null,null,null,null,null,null,null,null,null,null,null,null,null,null,null,null,null,null,null,null,"",null,"",""]
[null,null,null,null,null,null,null,null,null,null,null,null,null,null,null,null,null,null,null,null,null,null,null,"",null,"",""]
[null,null,null,null,null,null,null,null,null,null,null,null,null,null,null,null,null,null,null,null,"",null,null,"",null,"",""]
[null,null,null,null,null,null,null,null,null,null,null,null,null,null,null,null,null,null,null,null,"",null,null,"",null,"",""]
[null,null,null,null,null,null,null,null,null,null,null,null,null,null,null,null,null,null,null,null,"",null,null,"",null,"",""]
[]
[]
[]
[]
[]
[]
[]
[]
[]
[]
[]
[]
[]
[]
[]
[]
[]
[]
[null,"Tillkommande tjänster"]
[]
[null,"Tillkommande tjänster","Typ av enhet","Antal enhter","Kommentar",null,"Bör/Ska","Kostnadseffekt",null,"Ökad utvärderingskostnad",null,"Prisfaktor på konkurrerande anbud","Tjänsten erbjuds","Kostnader per enhet om den erbjuds",null,null,"Krav-kommentar",null,null,null,"Pris Konkurrerande anbud",null,null,null,null,"Utärderingskostnadsökning","Kostnadsavdrag"]
[null,null,null,null,null,null,null,null,null,null,null,null,null,null,null,null,null,null,null,null,null,null,null,null,null,{"$f":"IF(B41=\"\",\"\",IF(M41=\"Ja\",N41*D41,IF(H41=\"Ökad utvärderingskostnad\",J41,L41*U41*D41)))","v":""}]
[null,null,null,null,null,null,null,null,null,null,null,null,null,null,null,null,null,null,null,null,null,null,null,null,null,""]
[null,null,null,null,null,null,null,null,null,null,null,null,null,null,null,null,null,null,null,null,null,null,null,null,null,""]
[null,null,null,null,null,null,null,null,null,null,null,null,null,null,null,null,null,null,null,null,null,null,null,null,null,""]
[null,null,null,null,null,null,null,null,null,null,null,null,null,null,null,null,null,null,null,null,null,null,null,null,null,""]
[null,null,null,null,null,null,null,null,null,null,null,null,null,null,null,null,null,null,null,null,null,null,null,null,null,""]
[null,null,null,null,null,null,null,null,null,null,null,null,null,null,null,null,null,null,null,null,null,null,null,null,null,""]
[null,null,null,null,null,null,null,null,null,null,null,null,null,null,null,null,null,null,null,null,null,null,null,null,null,""]
[null,null,null,null,null,null,null,null,null,null,null,null,null,null,null,null,null,null,null,null,null,null,null,null,null,""]

{"sheet":"4.Sammanställning","index":3,"n_rows":11,"n_cols":7,"rows_kept":11,"cut":false,"hidden":false,"merged":[[3,3,3,5],[10,3,10,5],[4,3,4,5],[8,3,8,5],[6,3,6,5]]}
[]
[]
[]
[null,null,null,null,null,null,"Årliga kostnader"]
[null,null,null,"Kortinlösen och betalterminaler",null,null,{"$f":"IFERROR('1 Kortinlösen och betalterminal'!G33,\"Fel. Kontrollera motsvarande flik\")","v":0}]
[]
[null,null,null,"Påslag utvärdering",null,null,{"$f":"'3.Specifika krav'!Z2","v":0}]
[]
[null,null,null,"Avdrag utvärdering",null,null,{"$f":"'3.Specifika krav'!AA2","v":0}]
[]
[null,null,null,"Total utvärderingskostnad",null,null,{"$f":"G5+G7-G9","v":0}]

{"sheet":"Takpriser","index":4,"n_rows":95,"n_cols":5,"rows_kept":95,"cut":false,"hidden":true,"merged":[]}
[]
[]
[]
[null,null,"Kommentar","Nets Filial Sverige","Swedbank"]
[null,"1. Kortinlösen"]
[null,"Pris per transaktion för inlösen av EU Debetkort",null,0.39,0.7]
[null,"Pris i % på transaktionsbelopp för inlösen av EU Debetkort",null,3.0000000000000001E-3,5.0000000000000001E-3]
[null,"Pris per transaktion för inlösen av EU Kreditkort",null,0.39,0.7]
[null,"Pris i % på transaktionsbelopp för inlösen av EU Kreditkort",null,5.0000000000000001E-3,6.4999999999999997E-3]
[null,"Pris per transaktion för inlösen av EU Företagskort",null,0.39,0.7]
[null,"Pris i % på transaktionsbelopp för inlösen av EU Företagskort",null,1.7999999999999999E-2,1.4999999999999999E-2]
[null,"Pris per transaktion för inlösen av Internationella kort",null,0.39,0.7]
[null,"Pris i % på transaktionsbelopp för inlösen av Internationella kort",null,0.02,1.9E-2]
[]
[null,"2. Betalterminaler"]
[null,"Stationär kassaintegrerad terminal, Hyres period 12 månader, Pris per år",null,5340,4788]
[null,"Stationär kassaintegrerad terminal, Hyres period 24 månader, Pris per år",null,4260,4140]
[null,"Stationär kassaintegrerad terminal, Hyres period 36 månader, Pris per år",null,3780,3360]
[null,"Stationär fristående terminal, hyresperiod 12 månader, Pris per år",null,5640,5580]
[null,"Stationär fristående terminal, hyresperiod 24 månader, Pris per år",null,4560,4788]
[null,"Stationär fristående terminal, hyresperiod 36 månader, Pris per år",null,4080,4140]
[null,"Mobil fristående terminal, hyresperiod 12 månader, Pris per år",null,6720,5580]
[null,"Mobil fristående terminal, hyresperiod 24 månader, Pris per år",null,5640,4788]
[null,"Mobil fristående terminal, hyresperiod 36 månader, Pris per år",null,5040,4140]
[]
[]
[null,"3. Service, säkerhet och tillgänglighet"]
[null,"Pris för eventuell årskostnad för erbjuden service och tillgänglighet",null,0,4000]
[]
[]
[]
[]
[]
[]
[]
[]
[]
[]
[]
[]
[]
[]
[]
[]
[]
[]
[]
[]
[]
[]
[]
[]
[]
[]
[]
[]
[]
[]
[]
[]
[]
[]
[]
[]
[]
[]
[]
[]
[]
[]
[]
[]
[]
[]
[]
[]
[]
[]
[]
[]
[]
[]
[]
[]
[]
[]
[]
[]
[]
[]
[]
[]
[]
[]
[null,null,null,""]

{"sheet":"Admin","index":5,"n_rows":256,"n_cols":49,"rows_kept":256,"cut":false,"hidden":true,"merged":[]}
[]
[null,null,null,null,null,null,null,"Kravlistor",null,null,"Val"]
[null,null,"Nets Filial Sverige","Swedbank",null,"Kategorier",null,"Kategori","Krav",null,"BörSka",null,null,null,"Utvärdering",null,null,null,null,null,null,null,null,null,null,null,null,null,"Utvärdering",null,"Valutor",null,"Bank","Nordea","Swedbank",null,null,null,"Data för beräkningar",null,null,"Land","Valuta",null,"Vanliga",null,"Räntebaser","Standardavvikelse","Innehåller negativa räntor"]
[null,null,1,2,null,"1.1 Service/tillgänglighet ",null,"1.1 Service/tillgänglighet ","Tillgänglighet samt support efter kontorstid  ",null,"Bör",null,null,null,"Ja","Ja","Ja","Ja","Ja","Ja","Ja","Ja","Ja","Ja","Ja","Nej",null,null,"Beställar kontroll",null,"EUR",null,"Org-nr","9999-9999","8888-8888",null,null,null,null,null,null,"Afghan afghani","AFN",null,"EUR",null,"Stibor",0.14544965005583199]
[null,null,null,null,null,"1.2 Räntevillkor ",null,"1.1 Service/tillgänglighet ","Servicenivå för betalningsförmedling ",null,"Ska",null,null,null,"Nej",10,9,8,7,6,5,4,3,2,1,0,null,null,"Kravet Uppfylls",null,"DKK",null,"Kontaktperson","Anders Bankmansson","Johan Bankmansson",null,null,null,null,null,null,"European euro","EUR",null,"DKK",null,"VECU",0.19999990000000001]
[null,null,null,null,null,"1.3 Valuteringskrav ",null,"1.1 Service/tillgänglighet ","Servicenivå för löneförmedling ",null,null,null,null,null,0,9,8,7,6,5,4,3,2,1,0,null,null,null,"Uppfylls Delvis",null,"GBP",null,"Telefon",999,888,null,null,null,null,null,null,"European euro","EUR",null,"GBP",null,"VECI",0.19999990000000001,"NEJ"]
[null,null,null,null,null,"1.4 Bidragsutbetalningar ",null,"1.1 Service/tillgänglighet ","Kundteam och specialistfunktioner.  ",null,null,null,null,null,1,8,7,6,5,4,3,2,1,0,"Nej",null,null,null,"Uppfylls Ej",null,"USD",null,"E-post","Bankmansson@nordea.qq","Bankmansson@swedbank.qq",null,null,null,null,null,null,"Albanian lek","ALL",null,"USD"]
[null,null,null,null,null,"1.5.1 Lönespecifikation i pappersformat ",null,"1.1 Service/tillgänglighet ","Möjligheter/initiativ för effektivisering av UMs funktioner/arbetssätt. ",null,null,null,null,null,2,7,6,5,4,3,2,1,0,"Nej",null,null,null,null,null,null,"SEK",null,"Adress","Bankvägen 1","Bankvägen 2",null,null,null,null,null,null,"Algerian dinar","DZD",null,"NOK"]
[null,null,null,null,null,"1.5.2 Kontrolluppgift i pappersformat",null,"1.1 Service/tillgänglighet ","Annat service/tillgänglighet ",null,null,null,null,null,3,6,5,4,3,2,1,0,"Nej",null,null,null,null,null,null,null,null,null,null,null,null,null,null,null,null,null,null,"United States dollar","USD"]
[null,null,null,null,null,"1.5.3 Kontoutdrag eller annan betalningsstatistik på papper",null,"1.2 Räntevillkor ","Ränteberäkningsvillkor",null,null,null,null,null,4,5,4,3,2,1,0,"Nej",null,null,null,null,null,null,null,null,null,null,null,null,null,null,null,null,null,null,null,"European euro","EUR"]
[null,null,null,null,null,"1.6 Finansiella tjänster",null,"1.2 Räntevillkor ","Räntebas  ",null,null,null,null,null,5,4,3,2,1,0,"Nej",null,null,null,null,null,null,null,null,null,null,null,null,null,null,null,null,null,null,null,null,"Angolan kwanza","AOA"]
[null,null,null,null,null,"1.7 Resekonto",null,"1.2 Räntevillkor ","Räntekonvention",null,null,null,null,null,6,3,2,1,0,"Nej",null,null,null,null,null,null,null,null,null,null,null,null,null,null,null,null,null,null,null,null,null,"East Caribbean dollar","XCD"]
[null,null,null,null,"1.8 Pris",null,null,"1.2 Räntevillkor ","Kreditavgift",null,null,null,null,null,7,2,1,0,"Nej",null,null,null,null,null,null,null,null,null,null,null,null,null,null,null,null,null,null,null,null,null,null,"East Caribbean dollar","XCD"]
[null,null,null,null,null,"2.1 Service/tillgänglighet",null,"1.2 Räntevillkor ","Inlåningsavgift ",null,null,null,null,null,8,1,0,"Nej",null,null,null,null,null,null,null,null,null,null,null,null,null,null,null,null,null,null,null,null,"Saknas data",null,null,"Argentine peso","ARS"]
[null,null,null,null,null,"2.2 Direktbanksbetalning",null,"1.2 Räntevillkor ","Leverantören ska/bör ge möjlighet för UM att utöka kredit under avtalstiden.",null,null,null,null,null,9,0,"Nej",null,null,null,null,null,null,null,null,null,null,null,null,null,null,null,null,null,null,null,null,null,"Halvårsvis",182.5,null,"Armenian dram","AMD"]
[null,null,null,null,null,"2.3 Betalterminaler",null,"1.2 Räntevillkor ","Konton under ett visst toppkonto att ska/bör hämta samma räntevillkor som gäller för toppkontot. Detta innebär att vid en ränteändring på toppkonto uppdateras räntevillkor automatiskt på alla underliggande konton.",null,null,null,null,null,10,"Nej",null,null,null,null,null,null,null,null,null,null,null,null,null,null,null,null,null,null,null,null,null,null,"Kvartalsvis ",91.25,null,"Aruban florin","AWG"]
[null,null,null,null,null,"2.4 Pris",null,"1.2 Räntevillkor ","Annat räntevillkor ",null,null,null,null,null,null,null,null,null,null,null,null,null,null,null,null,null,null,null,null,null,null,null,null,null,null,null,null,null,null,null,null,"Saint Helena pound","SHP"]
[null,null,null,null,null,null,null,"1.3 Valuteringskrav ","Tillämpa förmånsvalutering på alla bankgiroinbetalningar vilket innebär att ränta räknas på det insatta beloppet redan fr.o.m. bokföringsdagen. ",null,null,null,null,null,null,null,null,null,null,null,null,null,null,null,null,null,null,null,null,null,null,null,null,null,null,null,null,null,"Månadsvis",30.416666666666668,null,"Australian dollar","AUD"]
[null,null,null,null,null,null,null,"1.3 Valuteringskrav ","Erbjuda att bokföringsdag och valutadag är samma dag för ankommande betalningar. ",null,null,null,null,null,null,null,null,null,null,null,null,null,null,null,null,null,null,null,null,null,null,null,null,null,null,null,null,null,"Årsvis",365,null,"European euro","EUR"]
[null,null,null,null,null,null,null,"1.3 Valuteringskrav ","Valutera lönelikviden från UMs konto bankdagen före löneutbetalning. ",null,null,null,null,null,null,null,null,null,null,null,null,null,null,null,null,null,null,null,null,null,null,null,null,null,null,null,null,null,0,0,null,"Azerbaijan manat","AZN"]
[null,null,null,null,null,null,null,"1.3 Valuteringskrav ","Belasta UMs konto samma dag som löneutbetalning ska ske, dvs lönelikvid valuteras samma dag.  ",null,null,null,null,null,null,null,null,null,null,null,null,null,null,null,null,null,null,null,null,null,null,null,null,null,null,null,null,null,0,0,null,"Bahamian dollar","BSD"]
[null,null,null,null,null,null,null,"1.3 Valuteringskrav ","Valutera avgående elektroniska betalningar via girosystem (bankgiro eller plusgiro) samma dag.",null,null,null,null,null,null,null,null,null,null,null,null,null,null,null,null,null,null,null,null,null,null,null,null,null,null,null,null,null,0,0,null,"Bahraini dinar","BHD"]
[null,null,null,null,null,null,null,"1.3 Valuteringskrav ","Annat valuteringskrav",null,null,null,null,null,null,null,null,null,null,null,null,null,null,null,null,null,null,null,null,null,null,null,null,null,null,null,null,null,"30/360",360,null,"Bangladeshi taka","BDT"]
[null,null,null,null,null,null,null,"1.4 Bidragsutbetalningar ","Leverantören ska/bör erbjuda en tjänst för utbetalningar till mottagare avseende ekonomiskt bidrag såsom t ex försörjningsstöd, där Leverantören svarar för registerhållning av uppgifter om mottagarkonton.",null,null,null,null,null,null,null,null,null,null,null,null,null,null,null,null,null,null,null,null,null,null,null,null,null,null,null,null,null,"Act/360",360,null,"Barbadian dollar","BBD"]
[null,null,null,null,null,null,null,"1.4 Bidragsutbetalningar ","tjänsten ska/bör omfatta elektronisk (filöverförd) betalning direkt till Leverantören för kontoinsättning på bankkonto eller gironummer.",null,null,null,null,null,null,null,null,null,null,null,null,null,null,null,null,null,null,null,null,null,null,null,null,null,null,null,null,null,"Act/365",365,null,"Belarusian ruble","BYN"]
[null,null,null,null,null,null,null,"1.4 Bidragsutbetalningar ","Tjänsten ska/bör därutöver omfatta att banken ger information till mottagare för vilka information om mottagarens kontonummer saknas, hur mottagaren kan anmäla sitt kontonummer.",null,null,null,null,null,null,null,null,null,null,null,null,null,null,null,null,null,null,null,null,null,null,null,null,null,null,null,null,null,"Act/Act",365,null,"European euro","EUR"]
[null,null,null,null,null,null,null,"1.4 Bidragsutbetalningar ","Annat bidragsutbetalningar ",null,null,null,null,null,null,null,null,null,null,null,null,null,null,null,null,null,null,null,null,null,null,null,null,null,null,null,null,null,0,0,null,"Belize dollar","BZD"]
[null,null,null,null,null,null,null,"1.5.1 Lönespecifikation i pappersformat ","Leverantören ska/bör kunna generera och distribuera lönespecifikationer i pappersformat ",null,null,null,null,null,null,null,null,null,null,null,null,null,null,null,null,null,null,null,null,null,null,null,null,null,null,null,null,null,"30/360",1,null,"West African CFA franc","XOF"]
[null,null,null,null,null,null,null,"1.5.1 Lönespecifikation i pappersformat ","Det ska/bör vara möjligt för löntagare/förtroendevald att kunna välja att få en lönespecifikation i pappersformat. ",null,null,null,null,null,null,null,null,null,null,null,null,null,null,null,null,null,null,null,null,null,null,null,null,null,null,null,null,null,"Act/360",1.0138888888888888,null,"Bermudian dollar","BMD"]
[null,null,null,null,null,null,null,"1.5.1 Lönespecifikation i pappersformat ","Lönespecifikation i pappersformat ska/bör vara löntagaren tillhanda dagen innan lönen utbetalas. ",null,null,null,null,null,null,null,null,null,null,null,null,null,null,null,null,null,null,null,null,null,null,null,null,null,null,null,null,null,"Act/365",1,null,"Bhutanese ngultrum","BTN"]
[null,null,null,null,null,null,null,"1.5.1 Lönespecifikation i pappersformat ","Annat lönespecifikation i pappersformat ",null,null,null,null,null,null,null,null,null,null,null,null,null,null,null,null,null,null,null,null,null,null,null,null,null,null,null,null,null,"Act/Act",1,null,"Bolivian boliviano","BOB"]
[null,null,null,null,null,null,null,"1.5.2 Kontrolluppgift i pappersformat","Leverantören ska/bör kunna generera och distribuera kontrolluppgifter i pappersformat.",null,null,null,null,null,null,null,null,null,null,null,null,null,null,null,null,null,null,null,null,null,null,null,null,null,null,null,null,null,0,0,null,"United States dollar","USD"]
[null,null,null,null,null,null,null,"1.5.2 Kontrolluppgift i pappersformat","Annat kontrolluppgift i pappersformat",null,null,null,null,null,null,null,null,null,null,null,null,null,null,null,null,null,null,null,null,null,null,null,null,null,null,null,null,null,"Fullt genomslag",0,null,"Bosnia and Herzegovina convertible mark","BAM"]
[null,null,null,null,null,null,null,"1.5.3 Kontoutdrag eller annan betalningsstatistik på papper","Leverantören ska/bör kunna generera kontoutdrag eller annan betalningsstatistik i pappersformat.",null,null,null,null,null,null,null,null,null,null,null,null,null,null,null,null,null,null,null,null,null,null,null,null,null,null,null,null,null,"Räntegolv",36074.999999999993,null,"Botswana pula","BWP"]
[null,null,null,null,null,null,null,"1.5.3 Kontoutdrag eller annan betalningsstatistik på papper","Annat kontoutdrag eller annan betalningsstatistik på papper",null,null,null,null,null,null,null,null,null,null,null,null,null,null,null,null,null,null,null,null,null,null,null,null,null,null,null,null,null,"Stiborgolv",36111.111111111109,null,"Brazilian real","BRL"]
[null,null,null,null,null,null,null,"1.6 Finansiella tjänster","Leverantören ska/bör erbjuda UM en \"intra-day-limit\" eller motsvarande vid transaktioner i utländsk valuta med inkommande och avgående flöden samma dag.",null,null,null,null,null,null,null,null,null,null,null,null,null,null,null,null,null,null,null,null,null,null,null,null,null,null,null,null,null,0,0,null,"United States dollar","USD"]
[null,null,null,null,null,null,null,"1.6 Finansiella tjänster","flödena ska/bör kunna mötas samma valutadag",null,null,null,null,null,null,null,null,null,null,null,null,null,null,null,null,null,null,null,null,null,null,null,null,null,null,null,null,null,"Fullt genomslag",0,null,"United States dollar","USD"]
[null,null,null,null,null,null,null,"1.6 Finansiella tjänster","Leverantören ska/bör erbjuda resekonto.",null,null,null,null,null,null,null,null,null,null,null,null,null,null,null,null,null,null,null,null,null,null,null,null,null,null,null,null,null,"Räntegolv",573675.80587487877,null,"Brunei dollar","BND"]
[null,null,null,null,null,null,null,"1.6 Finansiella tjänster","Annat finansiella tjänster",null,null,null,null,null,null,null,null,null,null,null,null,null,null,null,null,null,null,null,null,null,null,null,null,null,null,null,null,null,"Stiborgolv",574537.03703703708,null,"Bulgarian lev","BGN"]
[null,null,null,null,null,null,null,"1.7 Resekonto","Resekontot ska/bör kunna disponeras/belastas av fler än en användare inom respektive juridisk person inom UM.",null,null,null,null,null,null,null,null,null,null,null,null,null,null,null,null,null,null,null,null,null,null,null,null,null,null,null,null,null,0,0,null,"West African CFA franc","XOF"]
[null,null,null,null,null,null,null,"1.7 Resekonto","Fakturering av köp som belastas resekonto ska/bör kunna ske månadsvis.",null,null,null,null,null,null,null,null,null,null,null,null,null,null,null,null,null,null,null,null,null,null,null,null,null,null,null,null,null,"Fullt genomslag",0,null,"Burundi franc","BIF"]
[null,null,null,null,null,null,null,"1.7 Resekonto","Resekontot ska vara anslutet till/kompatibelt med mest förekommande bokningssystem för resor, s.k Global Distribution Systems (GDS).",null,null,null,null,null,null,null,null,null,null,null,null,null,null,null,null,null,null,null,null,null,null,null,null,null,null,null,null,null,"Räntegolv",23956.048852240117,null,"Cape Verdean escudo","CVE"]
[null,null,null,null,null,null,null,"1.7 Resekonto","Annat resekonto",null,null,null,null,null,null,null,null,null,null,null,null,null,null,null,null,null,null,null,null,null,null,null,null,null,null,null,null,null,"Stiborgolv",24000.000000000004,null,"Cambodian riel","KHR"]
[null,null,null,null,null,null,null,"1.8 Pris","Annat pris",null,null,null,null,null,null,null,null,null,null,null,null,null,null,null,null,null,null,null,null,null,null,null,null,null,null,null,null,null,0,0,null,"Central African CFA franc","XAF"]
[null,null,null,null,null,null,null,null,null,null,null,null,null,null,null,null,null,null,null,null,null,null,null,null,null,null,null,null,null,null,null,null,null,null,null,null,null,null,"Fullt genomslag",{"$error":"#N/A"},null,"Canadian dollar","CAD"]
[null,null,null,null,null,null,null,null,null,null,null,null,null,null,null,null,null,null,null,null,null,null,null,null,null,null,null,null,null,null,null,null,null,null,null,null,null,null,"Räntegolv",{"$error":"#N/A"},null,"United States dollar","USD"]
[null,null,null,null,null,null,null,null,null,null,null,null,null,null,null,null,null,null,null,null,null,null,null,null,null,null,null,null,null,null,null,null,null,null,null,null,null,null,"Stiborgolv",{"$error":"#N/A"},null,"Cayman Islands dollar","KYD"]
[null,null,null,null,null,null,null,null,null,null,null,null,null,null,null,null,null,null,null,null,null,null,null,null,null,null,null,null,null,null,null,null,null,null,null,null,null,null,0,0,null,"Central African CFA franc","XAF"]
[null,null,null,null,null,null,null,null,null,null,null,null,null,null,null,null,null,null,null,null,null,null,null,null,null,null,null,null,null,null,null,null,null,null,null,null,null,null,"Fullt genomslag",{"$error":"#N/A"},null,"Central African CFA franc","XAF"]
[null,null,null,null,null,null,null,null,null,null,null,null,null,null,null,null,null,null,null,null,null,null,null,null,null,null,null,null,null,null,null,null,null,null,null,null,null,null,"Räntegolv",{"$error":"#N/A"},null,"New Zealand dollar","NZD"]
[null,null,null,null,null,null,null,null,null,null,null,null,null,null,null,null,null,null,null,null,null,null,null,null,null,null,null,null,null,null,null,null,null,null,null,null,null,null,"Stiborgolv",{"$error":"#N/A"},null,"Chilean peso","CLP"]
[null,null,null,null,null,null,null,null,null,null,null,null,null,null,null,null,null,null,null,null,null,null,null,null,null,null,null,null,null,null,null,null,null,null,null,null,null,null,0,0,null,"Chinese Yuan Renminbi","CNY"]
[null,null,null,null,null,null,null,null,null,null,null,null,null,null,null,null,null,null,null,null,null,null,null,null,null,null,null,null,null,null,null,null,null,null,null,null,null,null,"Fullt genomslag",0,null,"Australian dollar","AUD"]
[null,null,null,null,null,null,null,null,null,null,null,null,null,null,null,null,null,null,null,null,null,null,null,null,null,null,null,null,null,null,null,null,null,null,null,null,null,null,"Räntegolv",{"$error":"#N/A"},null,"Australian dollar","AUD"]
[null,null,null,null,null,null,null,null,null,null,null,null,null,null,null,null,null,null,null,null,null,null,null,null,null,null,null,null,null,null,null,null,null,null,null,null,null,null,"Stiborgolv",{"$error":"#N/A"},null,"Colombian peso","COP"]
[null,null,null,null,null,null,null,null,null,null,null,null,null,null,null,null,null,null,null,null,null,null,null,null,null,null,null,null,null,null,null,null,null,null,null,null,null,null,0,0,null,"Comorian franc","KMF"]
[null,null,null,null,null,null,null,null,null,null,null,null,null,null,null,null,null,null,null,null,null,null,null,null,null,null,null,null,null,null,null,null,null,null,null,null,null,null,"Fullt genomslag",0,null,"Congolese franc","CDF"]
[null,null,null,null,null,null,null,null,null,null,null,null,null,null,null,null,null,null,null,null,null,null,null,null,null,null,null,null,null,null,null,null,null,null,null,null,null,null,"Räntegolv",{"$error":"#N/A"},null,"Central African CFA franc","XAF"]
[null,null,null,null,null,null,null,null,null,null,null,null,null,null,null,null,null,null,null,null,null,null,null,null,null,null,null,null,null,null,null,null,null,null,null,null,null,null,"Stiborgolv",{"$error":"#N/A"},null,"Cook Islands dollar","none"]
[null,null,null,null,null,null,null,null,null,null,null,null,null,null,null,null,null,null,null,null,null,null,null,null,null,null,null,null,null,null,null,null,null,null,null,null,null,null,0,0,null,"Costa Rican colon","CRC"]
[null,null,null,null,null,null,null,null,null,null,null,null,null,null,null,null,null,null,null,null,null,null,null,null,null,null,null,null,null,null,null,null,null,null,null,null,null,null,0,0,null,"West African CFA franc","XOF"]
[null,null,null,null,null,null,null,null,null,null,null,null,null,null,null,null,null,null,null,null,null,null,null,null,null,null,null,null,null,null,null,null,null,null,null,null,null,null,0,0,null,"Croatian kuna","HRK"]
[null,null,null,null,null,null,null,null,null,null,null,null,null,null,null,null,null,null,null,null,null,null,null,null,null,null,null,null,null,null,null,null,null,null,null,null,null,null,0,0,null,"Cuban peso","CUP"]
[null,null,null,null,null,null,null,null,null,null,null,null,null,null,null,null,null,null,null,null,null,null,null,null,null,null,null,null,null,null,null,null,null,null,null,null,null,null,0,0,null,"Netherlands Antillean guilder","ANG"]
[null,null,null,null,null,null,null,null,null,null,null,null,null,null,null,null,null,null,null,null,null,null,null,null,null,null,null,null,null,null,null,null,null,null,null,null,null,null,0,0,null,"European euro","EUR"]
[null,null,null,null,null,null,null,null,null,null,null,null,null,null,null,null,null,null,null,null,null,null,null,null,null,null,null,null,null,null,null,null,null,null,null,null,null,null,0,0,null,"Czech koruna","CZK"]
[null,null,null,null,null,null,null,null,null,null,null,null,null,null,null,null,null,null,null,null,null,null,null,null,null,null,null,null,null,null,null,null,null,null,null,null,null,null,0,0,null,"Danish krone","DKK"]
[null,null,null,null,null,null,null,null,null,null,null,null,null,null,null,null,null,null,null,null,null,null,null,null,null,null,null,null,null,null,null,null,null,null,null,null,null,null,0,0,null,"Djiboutian franc","DJF"]
[null,null,null,null,null,null,null,null,null,null,null,null,null,null,null,null,null,null,null,null,null,null,null,null,null,null,null,null,null,null,null,null,null,null,null,null,null,null,0,0,null,"East Caribbean dollar","XCD"]
[null,null,null,null,null,null,null,null,null,null,null,null,null,null,null,null,null,null,null,null,null,null,null,null,null,null,null,null,null,null,null,null,null,null,null,null,null,null,0,0,null,"Dominican peso","DOP"]
[null,null,null,null,null,null,null,null,null,null,null,null,null,null,null,null,null,null,null,null,null,null,null,null,null,null,null,null,null,null,null,null,null,null,null,null,null,null,0,0,null,"United States dollar","USD"]
[null,null,null,null,null,null,null,null,null,null,null,null,null,null,null,null,null,null,null,null,null,null,null,null,null,null,null,null,null,null,null,null,null,null,null,null,null,null,0,0,null,"Egyptian pound","EGP"]
[null,null,null,null,null,null,null,null,null,null,null,null,null,null,null,null,null,null,null,null,null,null,null,null,null,null,null,null,null,null,null,null,null,null,null,null,null,null,0,0,null,"United States dollar","USD"]
[null,null,null,null,null,null,null,null,null,null,null,null,null,null,null,null,null,null,null,null,null,null,null,null,null,null,null,null,null,null,null,null,null,null,null,null,null,null,0,0,null,"Central African CFA franc","XAF"]
[null,null,null,null,null,null,null,null,null,null,null,null,null,null,null,null,null,null,null,null,null,null,null,null,null,null,null,null,null,null,null,null,null,null,null,null,null,null,0,0,null,"Eritrean nakfa","ERN"]
[null,null,null,null,null,null,null,null,null,null,null,null,null,null,null,null,null,null,null,null,null,null,null,null,null,null,null,null,null,null,null,null,null,null,null,null,null,null,0,0,null,"European euro","EUR"]
[null,null,null,null,null,null,null,null,null,null,null,null,null,null,null,null,null,null,null,null,null,null,null,null,null,null,null,null,null,null,null,null,null,null,null,null,null,null,0,0,null,"Swazi lilangeni","SZL"]
[null,null,null,null,null,null,null,null,null,null,null,null,null,null,null,null,null,null,null,null,null,null,null,null,null,null,null,null,null,null,null,null,null,null,null,null,null,null,null,null,null,"Ethiopian birr","ETB"]
[null,null,null,null,null,null,null,null,null,null,null,null,null,null,null,null,null,null,null,null,null,null,null,null,null,null,null,null,null,null,null,null,null,null,null,null,null,null,null,null,null,"Falkland Islands pound","FKP"]
[null,null,null,null,null,null,null,null,null,null,null,null,null,null,null,null,null,null,null,null,null,null,null,null,null,null,null,null,null,null,null,null,null,null,null,null,null,null,null,null,null,"Faroese krona","none"]
[null,null,null,null,null,null,null,null,null,null,null,null,null,null,null,null,null,null,null,null,null,null,null,null,null,null,null,null,null,null,null,null,null,null,null,null,null,null,null,null,null,"Fijian dollar","FJD"]
[null,null,null,null,null,null,null,null,null,null,null,null,null,null,null,null,null,null,null,null,null,null,null,null,null,null,null,null,null,null,null,null,null,null,null,null,null,null,null,null,null,"European euro","EUR"]
[null,null,null,null,null,null,null,null,null,null,null,null,null,null,null,null,null,null,null,null,null,null,null,null,null,null,null,null,null,null,null,null,null,null,null,null,null,null,null,null,null,"European euro","EUR"]
[null,null,null,null,null,null,null,null,null,null,null,null,null,null,null,null,null,null,null,null,null,null,null,null,null,null,null,null,null,null,null,null,null,null,null,null,null,null,null,null,null,"European euro","EUR"]
[null,null,null,null,null,null,null,null,null,null,null,null,null,null,null,null,null,null,null,null,null,null,null,null,null,null,null,null,null,null,null,null,null,null,null,null,null,null,null,null,null,"CFP franc","XPF"]
[null,null,null,null,null,null,null,null,null,null,null,null,null,null,null,null,null,null,null,null,null,null,null,null,null,null,null,null,null,null,null,null,null,null,null,null,null,null,null,null,null,"Central African CFA franc","XAF"]
[null,null,null,null,null,null,null,null,null,null,null,null,null,null,null,null,null,null,null,null,null,null,null,null,null,null,null,null,null,null,null,null,null,null,null,null,null,null,null,null,null,"Gambian dalasi","GMD"]
[null,null,null,null,null,null,null,null,null,null,null,null,null,null,null,null,null,null,null,null,null,null,null,null,null,null,null,null,null,null,null,null,null,null,null,null,null,null,null,null,null,"Georgian lari","GEL"]
[null,null,null,null,null,null,null,null,null,null,null,null,null,null,null,null,null,null,null,null,null,null,null,null,null,null,null,null,null,null,null,null,null,null,null,null,null,null,null,null,null,"European euro","EUR"]
[null,null,null,null,null,null,null,null,null,null,null,null,null,null,null,null,null,null,null,null,null,null,null,null,null,null,null,null,null,null,null,null,null,null,null,null,null,null,null,null,null,"Ghanaian cedi","GHS"]
[null,null,null,null,null,null,null,null,null,null,null,null,null,null,null,null,null,null,null,null,null,null,null,null,null,null,null,null,null,null,null,null,null,null,null,null,null,null,null,null,null,"Gibraltar pound","GIP"]
[null,null,null,null,null,null,null,null,null,null,null,null,null,null,null,null,null,null,null,null,null,null,null,null,null,null,null,null,null,null,null,null,null,null,null,null,null,null,null,null,null,"European euro","EUR"]
[null,null,null,null,null,null,null,null,null,null,null,null,null,null,null,null,null,null,null,null,null,null,null,null,null,null,null,null,null,null,null,null,null,null,null,null,null,null,null,null,null,"Danish krone","DKK"]
[null,null,null,null,null,null,null,null,null,null,null,null,null,null,null,null,null,null,null,null,null,null,null,null,null,null,null,null,null,null,null,null,null,null,null,null,null,null,null,null,null,"East Caribbean dollar","XCD"]
[null,null,null,null,null,null,null,null,null,null,null,null,null,null,null,null,null,null,null,null,null,null,null,null,null,null,null,null,null,null,null,null,null,null,null,null,null,null,null,null,null,"European euro","EUR"]
[null,null,null,null,null,null,null,null,null,null,null,null,null,null,null,null,null,null,null,null,null,null,null,null,null,null,null,null,null,null,null,null,null,null,null,null,null,null,null,null,null,"United States dollar","USD"]
[null,null,null,null,null,null,null,null,null,null,null,null,null,null,null,null,null,null,null,null,null,null,null,null,null,null,null,null,null,null,null,null,null,null,null,null,null,null,null,null,null,"Guatemalan quetzal","GTQ"]
[null,null,null,null,null,null,null,null,null,null,null,null,null,null,null,null,null,null,null,null,null,null,null,null,null,null,null,null,null,null,null,null,null,null,null,null,null,null,null,null,null,"Guernsey Pound","GGP"]
[null,null,null,null,null,null,null,null,null,null,null,null,null,null,null,null,null,null,null,null,null,null,null,null,null,null,null,null,null,null,null,null,null,null,null,null,null,null,null,null,null,"Guinean franc","GNF"]
[null,null,null,null,null,null,null,null,null,null,null,null,null,null,null,null,null,null,null,null,null,null,null,null,null,null,null,null,null,null,null,null,null,null,null,null,null,null,null,null,null,"West African CFA franc","XOF"]
[null,null,null,null,null,null,null,null,null,null,null,null,null,null,null,null,null,null,null,null,null,null,null,null,null,null,null,null,null,null,null,null,null,null,null,null,null,null,null,null,null,"Guyanese dollar","GYD"]
[null,null,null,null,null,null,null,null,null,null,null,null,null,null,null,null,null,null,null,null,null,null,null,null,null,null,null,null,null,null,null,null,null,null,null,null,null,null,null,null,null,"Haitian gourde","HTG"]
[null,null,null,null,null,null,null,null,null,null,null,null,null,null,null,null,null,null,null,null,null,null,null,null,null,null,null,null,null,null,null,null,null,null,null,null,null,null,null,null,null,"Honduran lempira","HNL"]
[null,null,null,null,null,null,null,null,null,null,null,null,null,null,null,null,null,null,null,null,null,null,null,null,null,null,null,null,null,null,null,null,null,null,null,null,null,null,null,null,null,"Hong Kong dollar","HKD"]
[null,null,null,null,null,null,null,null,null,null,null,null,null,null,null,null,null,null,null,null,null,null,null,null,null,null,null,null,null,null,null,null,null,null,null,null,null,null,null,null,null,"Hungarian forint","HUF"]
[null,null,null,null,null,null,null,null,null,null,null,null,null,null,null,null,null,null,null,null,null,null,null,null,null,null,null,null,null,null,null,null,null,null,null,null,null,null,null,null,null,"Icelandic krona","ISK"]
[null,null,null,null,null,null,null,null,null,null,null,null,null,null,null,null,null,null,null,null,null,null,null,null,null,null,null,null,null,null,null,null,null,null,null,null,null,null,null,null,null,"Indian rupee","INR"]
[null,null,null,null,null,null,null,null,null,null,null,null,null,null,null,null,null,null,null,null,null,null,null,null,null,null,null,null,null,null,null,null,null,null,null,null,null,null,null,null,null,"Indonesian rupiah","IDR"]
[null,null,null,null,null,null,null,null,null,null,null,null,null,null,null,null,null,null,null,null,null,null,null,null,null,null,null,null,null,null,null,null,null,null,null,null,null,null,null,null,null,"SDR (Special Drawing Right)","XDR"]
[null,null,null,null,null,null,null,null,null,null,null,null,null,null,null,null,null,null,null,null,null,null,null,null,null,null,null,null,null,null,null,null,null,null,null,null,null,null,null,null,null,"Iranian rial","IRR"]
[null,null,null,null,null,null,null,null,null,null,null,null,null,null,null,null,null,null,null,null,null,null,null,null,null,null,null,null,null,null,null,null,null,null,null,null,null,null,null,null,null,"Iraqi dinar","IQD"]
[null,null,null,null,null,null,null,null,null,null,null,null,null,null,null,null,null,null,null,null,null,null,null,null,null,null,null,null,null,null,null,null,null,null,null,null,null,null,null,null,null,"European euro","EUR"]
[null,null,null,null,null,null,null,null,null,null,null,null,null,null,null,null,null,null,null,null,null,null,null,null,null,null,null,null,null,null,null,null,null,null,null,null,null,null,null,null,null,"Manx pound","IMP"]
[null,null,null,null,null,null,null,null,null,null,null,null,null,null,null,null,null,null,null,null,null,null,null,null,null,null,null,null,null,null,null,null,null,null,null,null,null,null,null,null,null,"Israeli new shekel","ILS"]
[null,null,null,null,null,null,null,null,null,null,null,null,null,null,null,null,null,null,null,null,null,null,null,null,null,null,null,null,null,null,null,null,null,null,null,null,null,null,null,null,null,"European euro","EUR"]
[null,null,null,null,null,null,null,null,null,null,null,null,null,null,null,null,null,null,null,null,null,null,null,null,null,null,null,null,null,null,null,null,null,null,null,null,null,null,null,null,null,"Jamaican dollar","JMD"]
[null,null,null,null,null,null,null,null,null,null,null,null,null,null,null,null,null,null,null,null,null,null,null,null,null,null,null,null,null,null,null,null,null,null,null,null,null,null,null,null,null,"Japanese yen","JPY"]
[null,null,null,null,null,null,null,null,null,null,null,null,null,null,null,null,null,null,null,null,null,null,null,null,null,null,null,null,null,null,null,null,null,null,null,null,null,null,null,null,null,"Jersey pound","JEP"]
[null,null,null,null,null,null,null,null,null,null,null,null,null,null,null,null,null,null,null,null,null,null,null,null,null,null,null,null,null,null,null,null,null,null,null,null,null,null,null,null,null,"Jordanian dinar","JOD"]
[null,null,null,null,null,null,null,null,null,null,null,null,null,null,null,null,null,null,null,null,null,null,null,null,null,null,null,null,null,null,null,null,null,null,null,null,null,null,null,null,null,"Kazakhstani tenge","KZT"]
[null,null,null,null,null,null,null,null,null,null,null,null,null,null,null,null,null,null,null,null,null,null,null,null,null,null,null,null,null,null,null,null,null,null,null,null,null,null,null,null,null,"Kenyan shilling","KES"]
[null,null,null,null,null,null,null,null,null,null,null,null,null,null,null,null,null,null,null,null,null,null,null,null,null,null,null,null,null,null,null,null,null,null,null,null,null,null,null,null,null,"Australian dollar","AUD"]
[null,null,null,null,null,null,null,null,null,null,null,null,null,null,null,null,null,null,null,null,null,null,null,null,null,null,null,null,null,null,null,null,null,null,null,null,null,null,null,null,null,"European euro","EUR"]
[null,null,null,null,null,null,null,null,null,null,null,null,null,null,null,null,null,null,null,null,null,null,null,null,null,null,null,null,null,null,null,null,null,null,null,null,null,null,null,null,null,"Kuwaiti dinar","KWD"]
[null,null,null,null,null,null,null,null,null,null,null,null,null,null,null,null,null,null,null,null,null,null,null,null,null,null,null,null,null,null,null,null,null,null,null,null,null,null,null,null,null,"Kyrgyzstani som","KGS"]
[null,null,null,null,null,null,null,null,null,null,null,null,null,null,null,null,null,null,null,null,null,null,null,null,null,null,null,null,null,null,null,null,null,null,null,null,null,null,null,null,null,"Lao kip","LAK"]
[null,null,null,null,null,null,null,null,null,null,null,null,null,null,null,null,null,null,null,null,null,null,null,null,null,null,null,null,null,null,null,null,null,null,null,null,null,null,null,null,null,"European euro","EUR"]
[null,null,null,null,null,null,null,null,null,null,null,null,null,null,null,null,null,null,null,null,null,null,null,null,null,null,null,null,null,null,null,null,null,null,null,null,null,null,null,null,null,"Lebanese pound","LBP"]
[null,null,null,null,null,null,null,null,null,null,null,null,null,null,null,null,null,null,null,null,null,null,null,null,null,null,null,null,null,null,null,null,null,null,null,null,null,null,null,null,null,"Lesotho loti","LSL"]
[null,null,null,null,null,null,null,null,null,null,null,null,null,null,null,null,null,null,null,null,null,null,null,null,null,null,null,null,null,null,null,null,null,null,null,null,null,null,null,null,null,"Liberian dollar","LRD"]
[null,null,null,null,null,null,null,null,null,null,null,null,null,null,null,null,null,null,null,null,null,null,null,null,null,null,null,null,null,null,null,null,null,null,null,null,null,null,null,null,null,"Libyan dinar","LYD"]
[null,null,null,null,null,null,null,null,null,null,null,null,null,null,null,null,null,null,null,null,null,null,null,null,null,null,null,null,null,null,null,null,null,null,null,null,null,null,null,null,null,"Swiss franc","CHF"]
[null,null,null,null,null,null,null,null,null,null,null,null,null,null,null,null,null,null,null,null,null,null,null,null,null,null,null,null,null,null,null,null,null,null,null,null,null,null,null,null,null,"European euro","EUR"]
[null,null,null,null,null,null,null,null,null,null,null,null,null,null,null,null,null,null,null,null,null,null,null,null,null,null,null,null,null,null,null,null,null,null,null,null,null,null,null,null,null,"European euro","EUR"]
[null,null,null,null,null,null,null,null,null,null,null,null,null,null,null,null,null,null,null,null,null,null,null,null,null,null,null,null,null,null,null,null,null,null,null,null,null,null,null,null,null,"Macanese pataca","MOP"]
[null,null,null,null,null,null,null,null,null,null,null,null,null,null,null,null,null,null,null,null,null,null,null,null,null,null,null,null,null,null,null,null,null,null,null,null,null,null,null,null,null,"Malagasy ariary","MGA"]
[null,null,null,null,null,null,null,null,null,null,null,null,null,null,null,null,null,null,null,null,null,null,null,null,null,null,null,null,null,null,null,null,null,null,null,null,null,null,null,null,null,"Malawian kwacha","MWK"]
[null,null,null,null,null,null,null,null,null,null,null,null,null,null,null,null,null,null,null,null,null,null,null,null,null,null,null,null,null,null,null,null,null,null,null,null,null,null,null,null,null,"Malaysian ringgit","MYR"]
[null,null,null,null,null,null,null,null,null,null,null,null,null,null,null,null,null,null,null,null,null,null,null,null,null,null,null,null,null,null,null,null,null,null,null,null,null,null,null,null,null,"Maldivian rufiyaa","MVR"]
[null,null,null,null,null,null,null,null,null,null,null,null,null,null,null,null,null,null,null,null,null,null,null,null,null,null,null,null,null,null,null,null,null,null,null,null,null,null,null,null,null,"West African CFA franc","XOF"]
[null,null,null,null,null,null,null,null,null,null,null,null,null,null,null,null,null,null,null,null,null,null,null,null,null,null,null,null,null,null,null,null,null,null,null,null,null,null,null,null,null,"European euro","EUR"]
[null,null,null,null,null,null,null,null,null,null,null,null,null,null,null,null,null,null,null,null,null,null,null,null,null,null,null,null,null,null,null,null,null,null,null,null,null,null,null,null,null,"United States dollar","USD"]
[null,null,null,null,null,null,null,null,null,null,null,null,null,null,null,null,null,null,null,null,null,null,null,null,null,null,null,null,null,null,null,null,null,null,null,null,null,null,null,null,null,"European euro","EUR"]
[null,null,null,null,null,null,null,null,null,null,null,null,null,null,null,null,null,null,null,null,null,null,null,null,null,null,null,null,null,null,null,null,null,null,null,null,null,null,null,null,null,"Mauritanian ouguiya","MRU"]
[null,null,null,null,null,null,null,null,null,null,null,null,null,null,null,null,null,null,null,null,null,null,null,null,null,null,null,null,null,null,null,null,null,null,null,null,null,null,null,null,null,"Mauritian rupee","MUR"]
[null,null,null,null,null,null,null,null,null,null,null,null,null,null,null,null,null,null,null,null,null,null,null,null,null,null,null,null,null,null,null,null,null,null,null,null,null,null,null,null,null,"European euro","EUR"]
[null,null,null,null,null,null,null,null,null,null,null,null,null,null,null,null,null,null,null,null,null,null,null,null,null,null,null,null,null,null,null,null,null,null,null,null,null,null,null,null,null,"Mexican peso","MXN"]
[null,null,null,null,null,null,null,null,null,null,null,null,null,null,null,null,null,null,null,null,null,null,null,null,null,null,null,null,null,null,null,null,null,null,null,null,null,null,null,null,null,"United States dollar","USD"]
[null,null,null,null,null,null,null,null,null,null,null,null,null,null,null,null,null,null,null,null,null,null,null,null,null,null,null,null,null,null,null,null,null,null,null,null,null,null,null,null,null,"Moldovan leu","MDL"]
[null,null,null,null,null,null,null,null,null,null,null,null,null,null,null,null,null,null,null,null,null,null,null,null,null,null,null,null,null,null,null,null,null,null,null,null,null,null,null,null,null,"European euro","EUR"]
[null,null,null,null,null,null,null,null,null,null,null,null,null,null,null,null,null,null,null,null,null,null,null,null,null,null,null,null,null,null,null,null,null,null,null,null,null,null,null,null,null,"Mongolian tugrik","MNT"]
[null,null,null,null,null,null,null,null,null,null,null,null,null,null,null,null,null,null,null,null,null,null,null,null,null,null,null,null,null,null,null,null,null,null,null,null,null,null,null,null,null,"European euro","EUR"]
[null,null,null,null,null,null,null,null,null,null,null,null,null,null,null,null,null,null,null,null,null,null,null,null,null,null,null,null,null,null,null,null,null,null,null,null,null,null,null,null,null,"East Caribbean dollar","XCD"]
[null,null,null,null,null,null,null,null,null,null,null,null,null,null,null,null,null,null,null,null,null,null,null,null,null,null,null,null,null,null,null,null,null,null,null,null,null,null,null,null,null,"Moroccan dirham","MAD"]
[null,null,null,null,null,null,null,null,null,null,null,null,null,null,null,null,null,null,null,null,null,null,null,null,null,null,null,null,null,null,null,null,null,null,null,null,null,null,null,null,null,"Mozambican metical","MZN"]
[null,null,null,null,null,null,null,null,null,null,null,null,null,null,null,null,null,null,null,null,null,null,null,null,null,null,null,null,null,null,null,null,null,null,null,null,null,null,null,null,null,"Myanmar kyat","MMK"]
[null,null,null,null,null,null,null,null,null,null,null,null,null,null,null,null,null,null,null,null,null,null,null,null,null,null,null,null,null,null,null,null,null,null,null,null,null,null,null,null,null,"Namibian dollar","NAD"]
[null,null,null,null,null,null,null,null,null,null,null,null,null,null,null,null,null,null,null,null,null,null,null,null,null,null,null,null,null,null,null,null,null,null,null,null,null,null,null,null,null,"Australian dollar","AUD"]
[null,null,null,null,null,null,null,null,null,null,null,null,null,null,null,null,null,null,null,null,null,null,null,null,null,null,null,null,null,null,null,null,null,null,null,null,null,null,null,null,null,"Nepalese rupee","NPR"]
[null,null,null,null,null,null,null,null,null,null,null,null,null,null,null,null,null,null,null,null,null,null,null,null,null,null,null,null,null,null,null,null,null,null,null,null,null,null,null,null,null,"European euro","EUR"]
[null,null,null,null,null,null,null,null,null,null,null,null,null,null,null,null,null,null,null,null,null,null,null,null,null,null,null,null,null,null,null,null,null,null,null,null,null,null,null,null,null,"CFP franc","XPF"]
[null,null,null,null,null,null,null,null,null,null,null,null,null,null,null,null,null,null,null,null,null,null,null,null,null,null,null,null,null,null,null,null,null,null,null,null,null,null,null,null,null,"New Zealand dollar","NZD"]
[null,null,null,null,null,null,null,null,null,null,null,null,null,null,null,null,null,null,null,null,null,null,null,null,null,null,null,null,null,null,null,null,null,null,null,null,null,null,null,null,null,"Nicaraguan cordoba","NIO"]
[null,null,null,null,null,null,null,null,null,null,null,null,null,null,null,null,null,null,null,null,null,null,null,null,null,null,null,null,null,null,null,null,null,null,null,null,null,null,null,null,null,"West African CFA franc","XOF"]
[null,null,null,null,null,null,null,null,null,null,null,null,null,null,null,null,null,null,null,null,null,null,null,null,null,null,null,null,null,null,null,null,null,null,null,null,null,null,null,null,null,"Nigerian naira","NGN"]
[null,null,null,null,null,null,null,null,null,null,null,null,null,null,null,null,null,null,null,null,null,null,null,null,null,null,null,null,null,null,null,null,null,null,null,null,null,null,null,null,null,"New Zealand dollar","NZD"]
[null,null,null,null,null,null,null,null,null,null,null,null,null,null,null,null,null,null,null,null,null,null,null,null,null,null,null,null,null,null,null,null,null,null,null,null,null,null,null,null,null,"Australian dollar","AUD"]
[null,null,null,null,null,null,null,null,null,null,null,null,null,null,null,null,null,null,null,null,null,null,null,null,null,null,null,null,null,null,null,null,null,null,null,null,null,null,null,null,null,"United States dollar","USD"]
[null,null,null,null,null,null,null,null,null,null,null,null,null,null,null,null,null,null,null,null,null,null,null,null,null,null,null,null,null,null,null,null,null,null,null,null,null,null,null,null,null,"North Korean won","KPW"]
[null,null,null,null,null,null,null,null,null,null,null,null,null,null,null,null,null,null,null,null,null,null,null,null,null,null,null,null,null,null,null,null,null,null,null,null,null,null,null,null,null,"Macedonian denar","MKD"]
[null,null,null,null,null,null,null,null,null,null,null,null,null,null,null,null,null,null,null,null,null,null,null,null,null,null,null,null,null,null,null,null,null,null,null,null,null,null,null,null,null,"Norwegian krone","NOK"]
[null,null,null,null,null,null,null,null,null,null,null,null,null,null,null,null,null,null,null,null,null,null,null,null,null,null,null,null,null,null,null,null,null,null,null,null,null,null,null,null,null,"Omani rial","OMR"]
[null,null,null,null,null,null,null,null,null,null,null,null,null,null,null,null,null,null,null,null,null,null,null,null,null,null,null,null,null,null,null,null,null,null,null,null,null,null,null,null,null,"Pakistani rupee","PKR"]
[null,null,null,null,null,null,null,null,null,null,null,null,null,null,null,null,null,null,null,null,null,null,null,null,null,null,null,null,null,null,null,null,null,null,null,null,null,null,null,null,null,"United States dollar","USD"]
[null,null,null,null,null,null,null,null,null,null,null,null,null,null,null,null,null,null,null,null,null,null,null,null,null,null,null,null,null,null,null,null,null,null,null,null,null,null,null,null,null,"Israeli new shekel","ILS"]
[null,null,null,null,null,null,null,null,null,null,null,null,null,null,null,null,null,null,null,null,null,null,null,null,null,null,null,null,null,null,null,null,null,null,null,null,null,null,null,null,null,"United States dollar","USD"]
[null,null,null,null,null,null,null,null,null,null,null,null,null,null,null,null,null,null,null,null,null,null,null,null,null,null,null,null,null,null,null,null,null,null,null,null,null,null,null,null,null,"Papua New Guinean kina","PGK"]
[null,null,null,null,null,null,null,null,null,null,null,null,null,null,null,null,null,null,null,null,null,null,null,null,null,null,null,null,null,null,null,null,null,null,null,null,null,null,null,null,null,"Paraguayan guarani","PYG"]
[null,null,null,null,null,null,null,null,null,null,null,null,null,null,null,null,null,null,null,null,null,null,null,null,null,null,null,null,null,null,null,null,null,null,null,null,null,null,null,null,null,"Peruvian sol","PEN"]
[null,null,null,null,null,null,null,null,null,null,null,null,null,null,null,null,null,null,null,null,null,null,null,null,null,null,null,null,null,null,null,null,null,null,null,null,null,null,null,null,null,"Philippine peso","PHP"]
[null,null,null,null,null,null,null,null,null,null,null,null,null,null,null,null,null,null,null,null,null,null,null,null,null,null,null,null,null,null,null,null,null,null,null,null,null,null,null,null,null,"New Zealand dollar","NZD"]
[null,null,null,null,null,null,null,null,null,null,null,null,null,null,null,null,null,null,null,null,null,null,null,null,null,null,null,null,null,null,null,null,null,null,null,null,null,null,null,null,null,"Polish zloty","PLN"]
[null,null,null,null,null,null,null,null,null,null,null,null,null,null,null,null,null,null,null,null,null,null,null,null,null,null,null,null,null,null,null,null,null,null,null,null,null,null,null,null,null,"European euro","EUR"]
[null,null,null,null,null,null,null,null,null,null,null,null,null,null,null,null,null,null,null,null,null,null,null,null,null,null,null,null,null,null,null,null,null,null,null,null,null,null,null,null,null,"United States dollar","USD"]
[null,null,null,null,null,null,null,null,null,null,null,null,null,null,null,null,null,null,null,null,null,null,null,null,null,null,null,null,null,null,null,null,null,null,null,null,null,null,null,null,null,"Qatari riyal","QAR"]
[null,null,null,null,null,null,null,null,null,null,null,null,null,null,null,null,null,null,null,null,null,null,null,null,null,null,null,null,null,null,null,null,null,null,null,null,null,null,null,null,null,"European euro","EUR"]
[null,null,null,null,null,null,null,null,null,null,null,null,null,null,null,null,null,null,null,null,null,null,null,null,null,null,null,null,null,null,null,null,null,null,null,null,null,null,null,null,null,"Romanian leu","RON"]
[null,null,null,null,null,null,null,null,null,null,null,null,null,null,null,null,null,null,null,null,null,null,null,null,null,null,null,null,null,null,null,null,null,null,null,null,null,null,null,null,null,"Russian ruble","RUB"]
[null,null,null,null,null,null,null,null,null,null,null,null,null,null,null,null,null,null,null,null,null,null,null,null,null,null,null,null,null,null,null,null,null,null,null,null,null,null,null,null,null,"Rwandan franc","RWF"]
[null,null,null,null,null,null,null,null,null,null,null,null,null,null,null,null,null,null,null,null,null,null,null,null,null,null,null,null,null,null,null,null,null,null,null,null,null,null,null,null,null,"United States dollar","USD"]
[null,null,null,null,null,null,null,null,null,null,null,null,null,null,null,null,null,null,null,null,null,null,null,null,null,null,null,null,null,null,null,null,null,null,null,null,null,null,null,null,null,"European euro","EUR"]
[null,null,null,null,null,null,null,null,null,null,null,null,null,null,null,null,null,null,null,null,null,null,null,null,null,null,null,null,null,null,null,null,null,null,null,null,null,null,null,null,null,"Saint Helena pound","SHP"]
[null,null,null,null,null,null,null,null,null,null,null,null,null,null,null,null,null,null,null,null,null,null,null,null,null,null,null,null,null,null,null,null,null,null,null,null,null,null,null,null,null,"East Caribbean dollar","XCD"]
[null,null,null,null,null,null,null,null,null,null,null,null,null,null,null,null,null,null,null,null,null,null,null,null,null,null,null,null,null,null,null,null,null,null,null,null,null,null,null,null,null,"East Caribbean dollar","XCD"]
[null,null,null,null,null,null,null,null,null,null,null,null,null,null,null,null,null,null,null,null,null,null,null,null,null,null,null,null,null,null,null,null,null,null,null,null,null,null,null,null,null,"European euro","EUR"]
[null,null,null,null,null,null,null,null,null,null,null,null,null,null,null,null,null,null,null,null,null,null,null,null,null,null,null,null,null,null,null,null,null,null,null,null,null,null,null,null,null,"European euro","EUR"]
[null,null,null,null,null,null,null,null,null,null,null,null,null,null,null,null,null,null,null,null,null,null,null,null,null,null,null,null,null,null,null,null,null,null,null,null,null,null,null,null,null,"East Caribbean dollar","XCD"]
[null,null,null,null,null,null,null,null,null,null,null,null,null,null,null,null,null,null,null,null,null,null,null,null,null,null,null,null,null,null,null,null,null,null,null,null,null,null,null,null,null,"Samoan tala","WST"]
[null,null,null,null,null,null,null,null,null,null,null,null,null,null,null,null,null,null,null,null,null,null,null,null,null,null,null,null,null,null,null,null,null,null,null,null,null,null,null,null,null,"European euro","EUR"]
[null,null,null,null,null,null,null,null,null,null,null,null,null,null,null,null,null,null,null,null,null,null,null,null,null,null,null,null,null,null,null,null,null,null,null,null,null,null,null,null,null,"Sao Tome and Principe dobra","STN"]
[null,null,null,null,null,null,null,null,null,null,null,null,null,null,null,null,null,null,null,null,null,null,null,null,null,null,null,null,null,null,null,null,null,null,null,null,null,null,null,null,null,"Saudi Arabian riyal","SAR"]
[null,null,null,null,null,null,null,null,null,null,null,null,null,null,null,null,null,null,null,null,null,null,null,null,null,null,null,null,null,null,null,null,null,null,null,null,null,null,null,null,null,"West African CFA franc","XOF"]
[null,null,null,null,null,null,null,null,null,null,null,null,null,null,null,null,null,null,null,null,null,null,null,null,null,null,null,null,null,null,null,null,null,null,null,null,null,null,null,null,null,"Serbian dinar","RSD"]
[null,null,null,null,null,null,null,null,null,null,null,null,null,null,null,null,null,null,null,null,null,null,null,null,null,null,null,null,null,null,null,null,null,null,null,null,null,null,null,null,null,"Seychellois rupee","SCR"]
[null,null,null,null,null,null,null,null,null,null,null,null,null,null,null,null,null,null,null,null,null,null,null,null,null,null,null,null,null,null,null,null,null,null,null,null,null,null,null,null,null,"Sierra Leonean leone","SLL"]
[null,null,null,null,null,null,null,null,null,null,null,null,null,null,null,null,null,null,null,null,null,null,null,null,null,null,null,null,null,null,null,null,null,null,null,null,null,null,null,null,null,"Singapore dollar","SGD"]
[null,null,null,null,null,null,null,null,null,null,null,null,null,null,null,null,null,null,null,null,null,null,null,null,null,null,null,null,null,null,null,null,null,null,null,null,null,null,null,null,null,"United States dollar","USD"]
[null,null,null,null,null,null,null,null,null,null,null,null,null,null,null,null,null,null,null,null,null,null,null,null,null,null,null,null,null,null,null,null,null,null,null,null,null,null,null,null,null,"Netherlands Antillean guilder","ANG"]
[null,null,null,null,null,null,null,null,null,null,null,null,null,null,null,null,null,null,null,null,null,null,null,null,null,null,null,null,null,null,null,null,null,null,null,null,null,null,null,null,null,"European euro","EUR"]
[null,null,null,null,null,null,null,null,null,null,null,null,null,null,null,null,null,null,null,null,null,null,null,null,null,null,null,null,null,null,null,null,null,null,null,null,null,null,null,null,null,"European euro","EUR"]
[null,null,null,null,null,null,null,null,null,null,null,null,null,null,null,null,null,null,null,null,null,null,null,null,null,null,null,null,null,null,null,null,null,null,null,null,null,null,null,null,null,"Solomon Islands dollar","SBD"]
[null,null,null,null,null,null,null,null,null,null,null,null,null,null,null,null,null,null,null,null,null,null,null,null,null,null,null,null,null,null,null,null,null,null,null,null,null,null,null,null,null,"Somali shilling","SOS"]
[null,null,null,null,null,null,null,null,null,null,null,null,null,null,null,null,null,null,null,null,null,null,null,null,null,null,null,null,null,null,null,null,null,null,null,null,null,null,null,null,null,"South African rand","ZAR"]
[null,null,null,null,null,null,null,null,null,null,null,null,null,null,null,null,null,null,null,null,null,null,null,null,null,null,null,null,null,null,null,null,null,null,null,null,null,null,null,null,null,"Pound sterling","GBP"]
[null,null,null,null,null,null,null,null,null,null,null,null,null,null,null,null,null,null,null,null,null,null,null,null,null,null,null,null,null,null,null,null,null,null,null,null,null,null,null,null,null,"South Korean won","KRW"]
[null,null,null,null,null,null,null,null,null,null,null,null,null,null,null,null,null,null,null,null,null,null,null,null,null,null,null,null,null,null,null,null,null,null,null,null,null,null,null,null,null,"South Sudanese pound","SSP"]
[null,null,null,null,null,null,null,null,null,null,null,null,null,null,null,null,null,null,null,null,null,null,null,null,null,null,null,null,null,null,null,null,null,null,null,null,null,null,null,null,null,"European euro","EUR"]
[null,null,null,null,null,null,null,null,null,null,null,null,null,null,null,null,null,null,null,null,null,null,null,null,null,null,null,null,null,null,null,null,null,null,null,null,null,null,null,null,null,"Sri Lankan rupee","LKR"]
[null,null,null,null,null,null,null,null,null,null,null,null,null,null,null,null,null,null,null,null,null,null,null,null,null,null,null,null,null,null,null,null,null,null,null,null,null,null,null,null,null,"Sudanese pound","SDG"]
[null,null,null,null,null,null,null,null,null,null,null,null,null,null,null,null,null,null,null,null,null,null,null,null,null,null,null,null,null,null,null,null,null,null,null,null,null,null,null,null,null,"Surinamese dollar","SRD"]
[null,null,null,null,null,null,null,null,null,null,null,null,null,null,null,null,null,null,null,null,null,null,null,null,null,null,null,null,null,null,null,null,null,null,null,null,null,null,null,null,null,"Norwegian krone","NOK"]
[null,null,null,null,null,null,null,null,null,null,null,null,null,null,null,null,null,null,null,null,null,null,null,null,null,null,null,null,null,null,null,null,null,null,null,null,null,null,null,null,null,"Swedish krona","SEK"]
[null,null,null,null,null,null,null,null,null,null,null,null,null,null,null,null,null,null,null,null,null,null,null,null,null,null,null,null,null,null,null,null,null,null,null,null,null,null,null,null,null,"Swiss franc","CHF"]
[null,null,null,null,null,null,null,null,null,null,null,null,null,null,null,null,null,null,null,null,null,null,null,null,null,null,null,null,null,null,null,null,null,null,null,null,null,null,null,null,null,"Syrian pound","SYP"]
[null,null,null,null,null,null,null,null,null,null,null,null,null,null,null,null,null,null,null,null,null,null,null,null,null,null,null,null,null,null,null,null,null,null,null,null,null,null,null,null,null,"New Taiwan dollar","TWD"]
[null,null,null,null,null,null,null,null,null,null,null,null,null,null,null,null,null,null,null,null,null,null,null,null,null,null,null,null,null,null,null,null,null,null,null,null,null,null,null,null,null,"Tajikistani somoni","TJS"]
[null,null,null,null,null,null,null,null,null,null,null,null,null,null,null,null,null,null,null,null,null,null,null,null,null,null,null,null,null,null,null,null,null,null,null,null,null,null,null,null,null,"Tanzanian shilling","TZS"]
[null,null,null,null,null,null,null,null,null,null,null,null,null,null,null,null,null,null,null,null,null,null,null,null,null,null,null,null,null,null,null,null,null,null,null,null,null,null,null,null,null,"Thai baht","THB"]
[null,null,null,null,null,null,null,null,null,null,null,null,null,null,null,null,null,null,null,null,null,null,null,null,null,null,null,null,null,null,null,null,null,null,null,null,null,null,null,null,null,"United States dollar","USD"]
[null,null,null,null,null,null,null,null,null,null,null,null,null,null,null,null,null,null,null,null,null,null,null,null,null,null,null,null,null,null,null,null,null,null,null,null,null,null,null,null,null,"West African CFA franc","XOF"]
[null,null,null,null,null,null,null,null,null,null,null,null,null,null,null,null,null,null,null,null,null,null,null,null,null,null,null,null,null,null,null,null,null,null,null,null,null,null,null,null,null,"New Zealand dollar","NZD"]
[null,null,null,null,null,null,null,null,null,null,null,null,null,null,null,null,null,null,null,null,null,null,null,null,null,null,null,null,null,null,null,null,null,null,null,null,null,null,null,null,null,"Tongan pa’anga","TOP"]
[null,null,null,null,null,null,null,null,null,null,null,null,null,null,null,null,null,null,null,null,null,null,null,null,null,null,null,null,null,null,null,null,null,null,null,null,null,null,null,null,null,"Trinidad and Tobago dollar","TTD"]
[null,null,null,null,null,null,null,null,null,null,null,null,null,null,null,null,null,null,null,null,null,null,null,null,null,null,null,null,null,null,null,null,null,null,null,null,null,null,null,null,null,"Pound sterling","GBP"]
[null,null,null,null,null,null,null,null,null,null,null,null,null,null,null,null,null,null,null,null,null,null,null,null,null,null,null,null,null,null,null,null,null,null,null,null,null,null,null,null,null,"Tunisian dinar","TND"]
[null,null,null,null,null,null,null,null,null,null,null,null,null,null,null,null,null,null,null,null,null,null,null,null,null,null,null,null,null,null,null,null,null,null,null,null,null,null,null,null,null,"Turkish lira","TRY"]
[null,null,null,null,null,null,null,null,null,null,null,null,null,null,null,null,null,null,null,null,null,null,null,null,null,null,null,null,null,null,null,null,null,null,null,null,null,null,null,null,null,"Turkmen manat","TMT"]
[null,null,null,null,null,null,null,null,null,null,null,null,null,null,null,null,null,null,null,null,null,null,null,null,null,null,null,null,null,null,null,null,null,null,null,null,null,null,null,null,null,"United States dollar","USD"]
[null,null,null,null,null,null,null,null,null,null,null,null,null,null,null,null,null,null,null,null,null,null,null,null,null,null,null,null,null,null,null,null,null,null,null,null,null,null,null,null,null,"Australian dollar","AUD"]
[null,null,null,null,null,null,null,null,null,null,null,null,null,null,null,null,null,null,null,null,null,null,null,null,null,null,null,null,null,null,null,null,null,null,null,null,null,null,null,null,null,"Ugandan shilling","UGX"]
[null,null,null,null,null,null,null,null,null,null,null,null,null,null,null,null,null,null,null,null,null,null,null,null,null,null,null,null,null,null,null,null,null,null,null,null,null,null,null,null,null,"Ukrainian hryvnia","UAH"]
[null,null,null,null,null,null,null,null,null,null,null,null,null,null,null,null,null,null,null,null,null,null,null,null,null,null,null,null,null,null,null,null,null,null,null,null,null,null,null,null,null,"UAE dirham","AED"]
[null,null,null,null,null,null,null,null,null,null,null,null,null,null,null,null,null,null,null,null,null,null,null,null,null,null,null,null,null,null,null,null,null,null,null,null,null,null,null,null,null,"Pound sterling","GBP"]
[null,null,null,null,null,null,null,null,null,null,null,null,null,null,null,null,null,null,null,null,null,null,null,null,null,null,null,null,null,null,null,null,null,null,null,null,null,null,null,null,null,"United States dollar","USD"]
[null,null,null,null,null,null,null,null,null,null,null,null,null,null,null,null,null,null,null,null,null,null,null,null,null,null,null,null,null,null,null,null,null,null,null,null,null,null,null,null,null,"Uruguayan peso","UYU"]
[null,null,null,null,null,null,null,null,null,null,null,null,null,null,null,null,null,null,null,null,null,null,null,null,null,null,null,null,null,null,null,null,null,null,null,null,null,null,null,null,null,"United States dollar","USD"]
[null,null,null,null,null,null,null,null,null,null,null,null,null,null,null,null,null,null,null,null,null,null,null,null,null,null,null,null,null,null,null,null,null,null,null,null,null,null,null,null,null,"Uzbekistani som","UZS"]
[null,null,null,null,null,null,null,null,null,null,null,null,null,null,null,null,null,null,null,null,null,null,null,null,null,null,null,null,null,null,null,null,null,null,null,null,null,null,null,null,null,"Vanuatu vatu","VUV"]
[null,null,null,null,null,null,null,null,null,null,null,null,null,null,null,null,null,null,null,null,null,null,null,null,null,null,null,null,null,null,null,null,null,null,null,null,null,null,null,null,null,"European euro","EUR"]
[null,null,null,null,null,null,null,null,null,null,null,null,null,null,null,null,null,null,null,null,null,null,null,null,null,null,null,null,null,null,null,null,null,null,null,null,null,null,null,null,null,"Venezuelan bolivar","VES"]
[null,null,null,null,null,null,null,null,null,null,null,null,null,null,null,null,null,null,null,null,null,null,null,null,null,null,null,null,null,null,null,null,null,null,null,null,null,null,null,null,null,"Vietnamese dong","VND"]
[null,null,null,null,null,null,null,null,null,null,null,null,null,null,null,null,null,null,null,null,null,null,null,null,null,null,null,null,null,null,null,null,null,null,null,null,null,null,null,null,null,"United States dollar","USD"]
[null,null,null,null,null,null,null,null,null,null,null,null,null,null,null,null,null,null,null,null,null,null,null,null,null,null,null,null,null,null,null,null,null,null,null,null,null,null,null,null,null,"CFP franc","XPF"]
[null,null,null,null,null,null,null,null,null,null,null,null,null,null,null,null,null,null,null,null,null,null,null,null,null,null,null,null,null,null,null,null,null,null,null,null,null,null,null,null,null,"Yemeni rial","YER"]
[null,null,null,null,null,null,null,null,null,null,null,null,null,null,null,null,null,null,null,null,null,null,null,null,null,null,null,null,null,null,null,null,null,null,null,null,null,null,null,null,null,"Zambian kwacha","ZMW"]
[null,null,null,null,null,null,null,null,null,null,null,null,null,null,null,null,null,null,null,null,null,null,null,null,null,null,null,null,null,null,null,null,null,null,null,null,null,null,null,null,null,"United States dollar","USD"]